bitfinex-derivatives/quotes_BTCF0:USTF0_20251120
["timestamp","ask_amount","ask_price","bid_price","bid_amount"]
[1763652958122,0.4339266,90455.0,90454.0,0.00219803]
[1763652958319,0.43465927,90455.0,90454.0,0.00219803]
[1763652958519,0.42359267,90455.0,90454.0,0.00219803]
[1763652958818,0.36153267,90455.0,90454.0,0.06588803]
[1763652959806,0.00073267,90455.0,90454.0,0.06588803]
[1763652960207,0.00016585,90464.0,90463.0,0.0747556]
[1763652960516,0.00016585,90464.0,90463.0,0.07695363]
[1763652960716,0.00089852,90464.0,90463.0,0.07695363]
[1763652960919,0.07402402,90464.0,90463.0,0.11043803]
[1763652961118,0.06295852,90464.0,90463.0,0.11043803]
[1763652961327,0.00016585,90464.0,90463.0,0.17412803]
[1763652961512,0.3608,90476.0,90475.0,0.0747541]
[1763652961715,0.3608,90497.0,90496.0,0.03232]
[1763652962018,0.3608,90497.0,90480.0,0.01842]
[1763652962019,0.0110628,90486.0,90480.0,0.01842]
[1763652962218,0.41961,90482.0,90481.0,0.11043803]
[1763652962417,0.42034267,90482.0,90481.0,0.00219803]
[1763652962611,0.36153267,90482.0,90481.0,0.05918803]
[1763652962918,0.42034267,90482.0,90481.0,0.00219803]
[1763652963119,0.0698744,90473.0,90472.0,0.00016575]
[1763652963322,0.43140707,90473.0,90472.0,0.00016575]
[1763652963517,0.43140707,90473.0,90472.0,0.00236378]
[1763652963717,0.42034267,90473.0,90472.0,0.00236378]
[1763652963918,0.00073267,90473.0,90472.0,0.05935378]
[1763652964118,0.3608,90482.0,90481.0,0.0382434]
[1763652964415,0.3608,90482.0,90481.0,0.05918803]
[1763652964416,0.00073267,90482.0,90481.0,0.05918803]
[1763652965514,0.3608,90483.0,90481.0,0.05918803]
[1763652965715,0.3608,90494.0,90493.0,0.0680519]
[1763652965910,0.3608,90511.0,90510.0,0.0110598]
[1763652966112,0.38714357,90511.0,90510.0,0.00219803]
[1763652966320,0.01133407,90526.0,90512.0,0.01683]
[1763652966321,0.00027617,90526.0,90512.0,0.01683]
[1763652966623,0.00027617,90526.0,90525.0,0.05918803]
[1763652967125,0.00027617,90526.0,90525.0,0.11043803]
[1763652967126,0.00100884,90526.0,90525.0,0.11043803]
[1763652967623,0.00100884,90526.0,90525.0,0.00219803]
[1763652967812,0.00027617,90526.0,90525.0,0.05918803]
[1763652968012,0.00100884,90526.0,90525.0,0.05918803]
[1763652968422,0.02988884,90526.0,90525.0,0.00219803]
[1763652968716,0.05981884,90526.0,90525.0,0.11039803]
[1763652969119,0.06081884,90526.0,90525.0,0.11039803]
[1763652969316,0.06181884,90526.0,90525.0,0.11039803]
[1763652969814,0.00300884,90526.0,90525.0,0.11039803]
[1763652970328,0.00300884,90526.0,90525.0,0.17844603]
[1763652971218,0.00227617,90526.0,90525.0,0.17844603]
[1763652971921,0.00227617,90526.0,90525.0,0.53924603]
[1763652972626,0.3608,90536.0,90535.0,0.0680468]
[1763652972822,0.3608,90536.0,90535.0,0.05918803]
[1763652972823,0.00073267,90536.0,90535.0,0.05918803]
[1763652973020,0.00073267,90536.0,90535.0,0.16730803]
[1763652973325,0.00073267,90536.0,90535.0,0.05918803]
[1763652973529,0.00073267,90536.0,90535.0,0.16730803]
[1763652973823,0.001,90536.0,90535.0,0.17836483]
[1763652974216,0.002,90536.0,90535.0,0.17836483]
[1763652974421,0.3608,90564.0,90560.0,0.0110536]
[1763652974627,0.00073267,90561.0,90560.0,0.0680436]
[1763652974919,0.00073267,90561.0,90560.0,0.07024163]
[1763652975220,0.3608,90564.0,90563.0,0.05699]
[1763652975426,0.3608,90564.0,90563.0,0.05918803]
[1763652975724,0.36153267,90564.0,90563.0,0.11027803]
[1763652975921,0.00073267,90564.0,90563.0,0.11027803]
[1763652976118,0.00273267,90564.0,90563.0,0.11027803]
[1763652976314,0.06154267,90564.0,90563.0,0.00219803]
[1763652976624,0.05954267,90564.0,90563.0,0.00219803]
[1763652976825,0.0698645,90554.0,90553.0,0.00016565]
[1763652977016,0.43139717,90554.0,90553.0,0.00016565]
[1763652977419,0.42034267,90554.0,90553.0,0.00016565]
[1763652977715,0.39041267,90554.0,90553.0,0.00236368]
[1763652977917,0.42034267,90554.0,90553.0,0.00236368]
[1763652978329,0.42134267,90554.0,90553.0,0.00236368]
[1763652978529,0.42134267,90554.0,90553.0,0.00016565]
[1763652978828,0.42134267,90554.0,90538.0,0.10808]
[1763652978829,0.36253267,90554.0,90538.0,0.10808]
[1763652979124,0.0110557,90544.0,90543.0,0.02718]
[1763652979427,0.00073267,90544.0,90543.0,0.05918803]
[1763652979724,0.05954267,90544.0,90543.0,0.00219803]
[1763652979927,0.00073267,90544.0,90531.0,0.10804]
[1763652980114,0.02888,90533.0,90532.0,0.00219803]
[1763652980320,0.07059967,90533.0,90532.0,0.00219803]
[1763652980623,0.0110579,90526.0,90523.0,0.1190983]
[1763652980822,0.00073267,90526.0,90525.0,0.011058]
[1763652981029,0.00073267,90526.0,90525.0,0.01325603]
[1763652981218,0.00073267,90526.0,90525.0,0.04043603]
[1763652981715,0.00073267,90526.0,90525.0,0.08707603]
[1763652981923,0.001,90533.0,90532.0,0.0680472]
[1763652982122,0.001,90533.0,90532.0,0.07024523]
[1763652982428,0.3608,90552.0,90551.0,0.05699]
[1763652982626,0.3608,90552.0,90551.0,0.17828283]
[1763652982830,0.3608,90570.0,90565.0,0.0110531]
[1763652983130,0.00100871,90566.0,90565.0,0.07024113]
[1763652983327,0.00100871,90566.0,90565.0,0.04043113]
[1763652983924,0.00027604,90566.0,90565.0,0.07024113]
[1763652984129,0.00100871,90566.0,90565.0,0.17824113]
[1763652985021,0.00027604,90566.0,90565.0,0.17824113]
[1763652985223,0.00100871,90566.0,90565.0,0.17824113]
[1763652985418,0.00100871,90566.0,90565.0,0.16718803]
[1763652985625,0.00100871,90566.0,90565.0,0.00219803]
[1763652985626,0.05981871,90566.0,90565.0,0.00219803]
[1763652985927,0.02988871,90566.0,90565.0,0.00219803]
[1763652986123,0.02988871,90566.0,90565.0,0.11019803]
[1763652987032,0.00027604,90566.0,90565.0,0.16718803]
[1763652988034,0.00016501,90575.0,90574.0,0.068042]
[1763652988231,0.00016501,90575.0,90574.0,0.11015803]
[1763652988232,0.05970768,90575.0,90574.0,0.11015803]
[1763652988429,0.07075958,90575.0,90574.0,0.11015803]
[1763652988624,0.05970768,90575.0,90574.0,0.00219803]
[1763652988822,0.05970768,90575.0,90559.0,0.3608]
[1763652988823,0.069862,90574.0,90573.0,0.10796]
[1763652989026,0.07059467,90574.0,90573.0,0.10796]
[1763652989231,0.07059467,90574.0,90573.0,0.00219803]
[1763652990236,0.05954267,90574.0,90573.0,0.00219803]
[1763652990839,0.0569,90563.0,90560.0,0.10792]
[1763652991043,0.0569,90563.0,90561.0,0.00219803]
[1763652991334,0.05763267,90562.0,90561.0,0.00219803]
[1763652991825,0.02879267,90562.0,90561.0,0.02875803]
[1763652992435,0.00073267,90562.0,90561.0,0.05722803]
[1763652992832,0.3608,90568.0,90567.0,0.0668329]
[1763652993142,0.02680267,90568.0,90567.0,0.06903093]
[1763652993338,0.00073267,90568.0,90567.0,0.06903093]
[1763652993535,0.41433267,90568.0,90567.0,0.00219803]
[1763652993735,0.0528,90557.0,90556.0,0.10804565]
[1763652993932,0.0528,90557.0,90556.0,0.00236368]
[1763652993933,0.05353267,90557.0,90556.0,0.00236368]
[1763652994440,0.06458677,90557.0,90556.0,0.00236368]
[1763652994938,0.06458677,90557.0,90556.0,0.00016565]
[1763652995139,0.0528,90538.0,90537.0,0.0110565]
[1763652995340,0.05353267,90538.0,90537.0,0.01325453]
[1763652996338,0.05353267,90538.0,90537.0,0.00219803]
[1763652996339,0.41433267,90538.0,90537.0,0.00219803]
[1763652996537,0.41433267,90538.0,90528.0,0.00016565]
[1763652996538,0.0528,90529.0,90528.0,0.00016565]
[1763652996839,0.07912261,90529.0,90528.0,0.00236368]
[1763652999030,0.05353267,90529.0,90528.0,0.00236368]
[1763652999343,0.02629125,90529.0,90528.0,0.05814368]
[1763652999539,0.00073267,90529.0,90528.0,0.05814368]
[1763652999836,0.3608,90538.0,90528.0,0.00236368]
[1763653000030,0.3608,90538.0,90537.0,0.0668365]
[1763653000230,0.38707084,90538.0,90537.0,0.06903453]
[1763653000634,0.36153267,90538.0,90537.0,0.06903453]
[1763653001035,0.08638239,90554.0,90546.0,0.0668354]
[1763653001237,0.08638239,90554.0,90546.0,0.06903343]
[1763653001744,0.0110534,90563.0,90546.0,0.06903343]
[1763653002246,0.3608,90568.0,90567.0,0.0110529]
[1763653002428,0.3981242,90568.0,90567.0,0.00219803]
[1763653002633,0.4398714,90568.0,90567.0,0.00219803]
[1763653002832,0.4509242,90568.0,90567.0,0.00219803]
[1763653003030,0.4398714,90568.0,90567.0,0.00219803]
[1763653003433,0.4398714,90568.0,90567.0,0.01325093]
[1763653003946,0.4398714,90568.0,90567.0,0.00219803]
[1763653004243,0.0528,90559.0,90558.0,0.00016565]
[1763653004438,0.05353267,90559.0,90558.0,0.03041368]
[1763653004643,0.3608,90568.0,90567.0,0.05578]
[1763653004838,0.38709358,90568.0,90567.0,0.06903093]
[1763653005144,0.41316358,90568.0,90567.0,0.06903093]
[1763653005736,0.41316358,90568.0,90558.0,0.00016565]
[1763653005737,0.0528,90559.0,90558.0,0.00016565]
[1763653005943,0.00073267,90559.0,90558.0,0.05814368]
[1763653007340,0.05353267,90559.0,90558.0,0.00236368]
[1763653008047,0.02680267,90559.0,90558.0,0.05814368]
[1763653008248,0.00073267,90559.0,90558.0,0.05814368]
[1763653008648,0.05353267,90559.0,90558.0,0.05814368]
[1763653008947,0.02680267,90559.0,90558.0,0.05814368]
[1763653010048,0.00073267,90559.0,90558.0,0.05814368]
[1763653011054,0.3608,90575.0,90574.0,0.066832]
[1763653011347,0.08963655,90580.0,90576.0,0.05578]
[1763653011542,0.08963655,90580.0,90576.0,0.05797803]
[1763653011748,0.0528,90603.0,90602.0,0.0110486]
[1763653011943,0.07908265,90603.0,90602.0,0.00219803]
[1763653012143,0.0528,90591.0,90590.0,0.3608]
[1763653012339,0.41433267,90591.0,90590.0,0.00219803]
[1763653012944,0.0528,90582.0,90581.0,0.00016556]
[1763653013247,0.41433267,90582.0,90581.0,0.00236359]
[1763653014641,0.0528,90567.0,90566.0,0.0110529]
[1763653014847,0.05353267,90567.0,90566.0,0.01325093]
[1763653015047,0.00073267,90567.0,90566.0,0.06903093]
[1763653015243,0.3608,90582.0,90581.0,0.05578]
[1763653015442,0.36153267,90582.0,90581.0,0.05797803]
[1763653016346,0.38760267,90582.0,90581.0,0.05797803]
[1763653016537,0.38760267,90582.0,90581.0,0.00319803]
[1763653016538,0.41433267,90582.0,90581.0,0.00319803]
[1763653017252,0.41433267,90582.0,90581.0,0.001]
[1763653019350,0.41433267,90582.0,90581.0,0.00319803]
[1763653020249,0.00073267,90582.0,90581.0,0.05897803]
[1763653020451,0.00073267,90582.0,90581.0,0.41977803]
[1763653020847,0.36096523,90591.0,90590.0,0.02805]
[1763653021051,0.3616979,90591.0,90590.0,0.06902813]
[1763653021256,0.4144979,90591.0,90590.0,0.01324813]
[1763653021751,0.0638511,90582.0,90581.0,0.001]
[1763653021949,0.41433267,90582.0,90581.0,0.00319803]
[1763653022151,0.00073267,90582.0,90581.0,0.41977803]
[1763653022358,0.41478523,90591.0,90590.0,0.0357601]
[1763653022539,0.3877679,90591.0,90590.0,0.06633813]
[1763653022747,0.0008979,90591.0,90590.0,0.06633813]
[1763653023059,0.10768,90615.0,90610.0,0.0796076]
[1763653023256,0.07895182,90633.0,90610.0,0.0796076]
[1763653023257,0.03821531,90636.0,90629.0,0.05309]
[1763653023450,0.0002758,90646.0,90645.0,0.05309]
[1763653023652,0.0002758,90646.0,90645.0,0.05528803]
[1763653024354,0.10768,90678.0,90645.0,0.00219803]
[1763653024355,0.01119848,90674.0,90645.0,0.00219803]
[1763653024656,0.00073267,90661.0,90650.0,0.18314025]
[1763653024853,0.05248267,90661.0,90660.0,0.00219803]
[1763653025051,0.05248267,90661.0,90660.0,0.36299803]
[1763653025254,0.01439,90675.0,90660.0,0.39137803]
[1763653025450,0.00073267,90674.0,90660.0,0.54613828]
[1763653025649,0.00073267,90674.0,90673.0,0.38551]
[1763653025851,0.00073267,90674.0,90673.0,0.41608803]
[1763653026149,0.00027568,90686.0,90673.0,0.41608803]
[1763653026349,0.05175,90683.0,90682.0,0.3608]
[1763653026547,0.05248267,90683.0,90682.0,0.36299803]
[1763653027263,0.05175,90674.0,90673.0,0.3608]
[1763653027459,0.05248267,90674.0,90673.0,0.36299803]
[1763653027656,0.05248267,90674.0,90645.0,0.01547]
[1763653027657,0.05175,90659.0,90649.0,0.3608]
[1763653027955,0.05175,90650.0,90649.0,0.3608]
[1763653028145,0.05248267,90650.0,90649.0,0.3608]
[1763653028344,0.05248267,90650.0,90632.0,0.3608]
[1763653028548,0.3608,90634.0,90633.0,0.00219803]
[1763653028749,0.36153267,90634.0,90621.0,0.3608]
[1763653028966,0.36153267,90634.0,90633.0,0.00219803]
[1763653029150,0.0110449,90633.0,90621.0,0.3608]
[1763653029346,0.0110449,90633.0,90623.0,0.00219803]
[1763653029657,0.00073267,90624.0,90623.0,0.06633413]
[1763653029863,0.00073267,90624.0,90623.0,0.05528803]
[1763653030560,0.00073267,90624.0,90623.0,0.05628803]
[1763653030751,0.00073267,90624.0,90623.0,0.00319803]
[1763653031152,0.00016515,90637.0,90633.0,0.05309]
[1763653031353,0.3608,90634.0,90623.0,0.001]
[1763653031653,0.0110454,90629.0,90624.0,0.00219803]
[1763653031862,0.00073267,90625.0,90624.0,0.00219803]
[1763653032362,0.36153267,90625.0,90624.0,0.00219803]
[1763653032557,0.0110459,90624.0,90623.0,0.002]
[1763653032861,0.0110459,90624.0,90623.0,0.00319803]
[1763653032862,0.00073267,90624.0,90623.0,0.00319803]
[1763653033263,0.00073267,90624.0,90623.0,0.05628803]
[1763653033655,0.00016515,90637.0,90623.0,0.05628803]
[1763653033656,0.01120955,90637.0,90633.0,0.02471]
[1763653033853,0.00016515,90637.0,90636.0,0.00219803]
[1763653034058,0.00089782,90637.0,90636.0,0.00219803]
[1763653034565,0.00089782,90637.0,90624.0,0.01647]
[1763653034566,0.0110455,90628.0,90624.0,0.01647]
[1763653034770,0.0110455,90628.0,90625.0,0.00219803]
[1763653035059,0.00073267,90627.0,90626.0,0.05309]
[1763653035257,0.00073267,90627.0,90626.0,0.05528803]
[1763653036360,0.00073267,90627.0,90626.0,0.05628803]
[1763653036560,0.00073267,90627.0,90626.0,0.02790803]
[1763653036761,0.00073267,90627.0,90626.0,0.05628803]
[1763653037263,0.00016515,90637.0,90635.0,0.0110446]
[1763653037558,0.00016515,90637.0,90636.0,0.05528803]
[1763653037764,0.3608,90657.0,90643.0,0.05309]
[1763653037961,0.0110414,90661.0,90660.0,0.01547]
[1763653038156,0.01177407,90661.0,90660.0,0.01766803]
[1763653038666,0.00073267,90661.0,90660.0,0.07075803]
[1763653039167,0.0110425,90652.0,90651.0,0.00016546]
[1763653039355,0.37257517,90652.0,90651.0,0.00236349]
[1763653039663,0.00073267,90652.0,90651.0,0.05545349]
[1763653040056,0.00073267,90652.0,90651.0,0.00236349]
[1763653040260,0.00073267,90652.0,90651.0,0.01340609]
[1763653040666,0.002,90661.0,90660.0,0.0641315]
[1763653040970,0.00273267,90661.0,90660.0,0.06632953]
[1763653041172,0.00173267,90661.0,90660.0,0.06632953]
[1763653041370,0.00173267,90661.0,90660.0,0.05528803]
[1763653041767,0.00173267,90661.0,90660.0,0.06632953]
[1763653041768,0.00073267,90661.0,90660.0,0.06632953]
[1763653042278,0.01177407,90661.0,90660.0,0.05528803]
[1763653042469,0.00173267,90661.0,90651.0,0.00016546]
[1763653042769,0.00173267,90661.0,90592.0,0.0944333]
[1763653042770,0.0110445,90636.0,90635.0,0.05309]
[1763653042962,0.3608,90658.0,90656.0,0.01547]
[1763653043159,0.03830167,90657.0,90656.0,0.01547]
[1763653043363,0.02725977,90657.0,90656.0,0.079602]
[1763653043570,0.00219803,90657.0,90656.0,0.440402]
[1763653043769,0.002,90661.0,90660.0,0.0641315]
[1763653044070,0.01423943,90661.0,90660.0,0.05309]
[1763653044272,0.00319803,90661.0,90660.0,0.05309]
[1763653044473,0.3608,90682.0,90658.0,0.0110418]
[1763653044474,0.3608,90682.0,90681.0,0.064129]
[1763653044671,0.3608,90693.0,90685.0,0.0641285]
[1763653045074,0.3608,90693.0,90692.0,0.0641276]
[1763653045270,0.011036,90706.0,90705.0,0.02471]
[1763653045475,0.00219803,90706.0,90705.0,0.02471]
[1763653045775,0.00219803,90706.0,90705.0,0.05309]
[1763653047072,0.3608,90711.0,90705.0,0.05309]
[1763653047277,0.00027556,90726.0,90725.0,0.05309]
[1763653047571,0.00027556,90726.0,90725.0,0.0641236]
[1763653047765,0.00027556,90726.0,90725.0,0.05309]
[1763653047766,0.00247359,90726.0,90725.0,0.05309]
[1763653048471,0.3608,90739.0,90719.0,1.5]
[1763653048472,0.3608,90739.0,90738.0,0.05309]
[1763653048670,0.3608,90739.0,90738.0,0.0641221]
[1763653049378,0.00219803,90739.0,90738.0,0.05448]
[1763653049874,0.00319803,90739.0,90738.0,0.11098]
[1763653050270,0.00319803,90739.0,90729.0,0.12315]
[1763653050271,0.0110329,90732.0,90729.0,0.01547]
[1763653050473,0.00219803,90730.0,90716.0,0.01120007]
[1763653050664,0.3618,90739.0,90738.0,0.11098]
[1763653050973,0.00319803,90739.0,90738.0,0.11098]
[1763653051177,0.00419803,90739.0,90738.0,0.11098]
[1763653051477,0.01522993,90739.0,90738.0,0.11098]
[1763653051675,0.01422993,90739.0,90738.0,0.11098]
[1763653051869,0.00319803,90739.0,90738.0,0.11098]
[1763653052073,0.00319803,90739.0,90738.0,0.1220121]
[1763653052478,0.00419803,90739.0,90738.0,0.11098]
[1763653052776,0.0110327,90733.0,90732.0,0.3608]
[1763653052968,0.01323073,90733.0,90732.0,0.3608]
[1763653053169,0.011034,90723.0,90722.0,0.05579]
[1763653053475,0.011034,90723.0,90722.0,0.11099]
[1763653053476,0.01323203,90723.0,90722.0,0.11099]
[1763653053869,0.01323203,90723.0,90722.0,0.05579]
[1763653054170,0.00219803,90723.0,90722.0,0.11099]
[1763653054573,0.001,90733.0,90732.0,0.11099]
[1763653054971,0.0110321,90738.0,90737.0,0.11099]
[1763653055179,0.00219803,90738.0,90737.0,0.11099]
[1763653055971,0.0110322,90737.0,90729.0,0.03423]
[1763653056280,0.00219803,90730.0,90729.0,0.25282]
[1763653056782,0.00219803,90730.0,90729.0,0.14522]
[1763653057284,0.0110331,90729.0,90728.0,0.3608]
[1763653057476,0.0110331,90729.0,90695.0,0.01547]
[1763653057477,0.0110344,90719.0,90708.0,0.0110357]
[1763653057673,0.00219803,90719.0,90718.0,0.52419]
[1763653057870,0.00219803,90719.0,90718.0,0.57939]
[1763653059274,0.00219803,90719.0,90718.0,0.47179]
[1763653060174,0.3618,90730.0,90729.0,0.1220231]
[1763653060375,0.36399803,90730.0,90729.0,0.11099]
[1763653060872,0.36399803,90730.0,90729.0,0.05579]
[1763653061183,0.36299803,90730.0,90723.0,0.0110339]
[1763653061387,0.0110339,90723.0,90722.0,0.21855]
[1763653061575,0.0110344,90719.0,90718.0,0.4793945]
[1763653061775,0.00219803,90719.0,90718.0,0.5903845]
[1763653062678,0.0110319,90740.0,90729.0,0.11099]
[1763653062869,0.0110328,90733.0,90732.0,0.11099]
[1763653063070,0.01323083,90733.0,90732.0,0.11099]
[1763653063271,0.00219803,90733.0,90732.0,0.11099]
[1763653064874,0.00319803,90733.0,90732.0,0.11099]
[1763653065671,0.00419803,90733.0,90732.0,0.11099]
[1763653066274,0.00419803,90733.0,90732.0,0.1220228]
[1763653066575,0.0110302,90753.0,90732.0,0.1220228]
[1763653066576,0.3608,90761.0,90748.0,0.1220208]
[1763653066776,0.3608,90761.0,90760.0,0.1220194]
[1763653067078,0.37402733,90761.0,90760.0,0.11099]
[1763653067572,0.37402733,90761.0,90760.0,0.05579]
[1763653067774,0.0110299,90756.0,90755.0,0.16331]
[1763653068085,0.1271404,90752.0,90751.0,0.00016527]
[1763653068284,0.12933843,90752.0,90751.0,0.00016527]
[1763653069289,0.11830803,90752.0,90724.0,0.0110337]
[1763653069578,0.11830803,90752.0,90720.0,0.0637657]
[1763653069579,0.0696924,90735.0,90720.0,0.0637657]
[1763653069785,0.0110342,90720.0,90719.0,0.3608]
[1763653070084,0.0110342,90720.0,90719.0,0.47179]
[1763653070085,0.01323223,90720.0,90719.0,0.47179]
[1763653070295,0.00219803,90720.0,90719.0,0.47179]
[1763653071180,0.01119783,90729.0,90728.0,0.11099]
[1763653071385,0.00236266,90729.0,90728.0,0.11099]
[1763653071578,0.00016463,90729.0,90728.0,0.11099]
[1763653071885,0.00236266,90729.0,90728.0,0.11099]
[1763653072682,0.00236266,90729.0,90728.0,0.05579]
[1763653072875,0.00236266,90729.0,90717.0,0.05579]
[1763653072876,0.36316266,90729.0,90717.0,0.05579]
[1763653073075,0.00236266,90729.0,90728.0,0.11099]
[1763653073286,0.00236266,90729.0,90728.0,0.47179]
[1763653074091,0.0110348,90715.0,90714.0,0.47179]
[1763653074282,0.0110348,90715.0,90714.0,0.57931]
[1763653074283,0.01323283,90715.0,90714.0,0.57931]
[1763653074889,0.01323283,90715.0,90714.0,0.47179]
[1763653075091,0.00219803,90715.0,90714.0,0.57931]
[1763653075288,0.00219803,90715.0,90714.0,0.58031]
[1763653075589,0.01119783,90729.0,90728.0,0.05579]
[1763653075887,0.00236266,90729.0,90728.0,0.11099]
[1763653076374,0.0110338,90724.0,90723.0,0.02969765]
[1763653076681,0.01323183,90724.0,90723.0,0.11099]
[1763653077478,0.00219803,90724.0,90723.0,0.47179]
[1763653077685,0.00219803,90724.0,90723.0,0.50151767]
[1763653077879,0.00219803,90724.0,90723.0,0.14071767]
[1763653078185,0.00219803,90724.0,90723.0,0.11099]
[1763653078378,0.00219803,90724.0,90723.0,0.47179]
[1763653078992,0.00016463,90729.0,90728.0,0.11099]
[1763653079175,0.1170073,90729.0,90728.0,0.00219803]
[1763653079682,0.0008973,90729.0,90728.0,0.11318803]
[1763653080883,0.0008973,90729.0,90728.0,0.1429156]
[1763653081382,0.1170073,90729.0,90728.0,0.00219803]
[1763653081592,0.4778073,90729.0,90728.0,0.00219803]
[1763653081883,0.0696948,90715.0,90714.0,0.02972757]
[1763653082085,0.1271453,90711.0,90707.0,0.02972757]
[1763653082288,0.1271453,90711.0,90705.0,0.3608]
[1763653082289,0.12787797,90711.0,90710.0,0.0023633]
[1763653082587,0.12787797,90711.0,90710.0,0.00016527]
[1763653082890,0.12787797,90711.0,90697.0,0.39052757]
[1763653082891,0.11314,90689.0,90681.0,0.02972757]
[1763653083086,0.12491127,90684.0,90683.0,0.00231715]
[1763653083479,0.12491127,90684.0,90683.0,0.00011912]
[1763653083989,0.1241797,90675.0,90674.0,0.00016537]
[1763653084187,0.1241797,90675.0,90655.0,0.3608]
[1763653084188,0.0110411,90664.0,90660.0,0.00219803]
[1763653084491,0.00073267,90661.0,90660.0,0.00219803]
[1763653084679,0.00073267,90661.0,90660.0,0.10866803]
[1763653085188,0.00085506,90661.0,90660.0,0.10866803]
[1763653085486,0.00085506,90661.0,90660.0,0.05406803]
[1763653085880,0.00085506,90661.0,90660.0,0.10866803]
[1763653086182,0.00085506,90661.0,90655.0,0.3608]
[1763653086183,0.011042,90656.0,90655.0,0.3608]
[1763653086386,0.00073267,90656.0,90655.0,0.46946803]
[1763653086785,0.00073267,90656.0,90655.0,0.10866803]
[1763653087675,0.11387267,90656.0,90655.0,0.00219803]
[1763653087874,0.11387267,90656.0,90655.0,0.00319803]
[1763653088085,0.00073267,90656.0,90655.0,0.47046803]
[1763653088293,0.00012239,90661.0,90660.0,0.1175115]
[1763653088495,0.0110397,90676.0,90664.0,0.1175111]
[1763653088681,0.0110397,90676.0,90664.0,0.11970913]
[1763653088984,0.0110396,90676.0,90664.0,0.11970913]
[1763653089182,0.0110391,90680.0,90679.0,0.10647]
[1763653089381,0.0999587,90680.0,90679.0,0.10866803]
[1763653089576,0.00073267,90680.0,90679.0,0.10866803]
[1763653089778,0.00073267,90680.0,90679.0,0.46946803]
[1763653089993,0.00027568,90686.0,90685.0,0.10647]
[1763653090187,0.00100835,90686.0,90685.0,0.10866803]
[1763653090385,0.09127302,90686.0,90685.0,0.10866803]
[1763653090586,0.00100835,90686.0,90685.0,0.10866803]
[1763653090782,0.00027568,90686.0,90685.0,0.10866803]
[1763653091687,0.00100835,90686.0,90685.0,0.10866803]
[1763653091883,0.00027568,90686.0,90685.0,0.10866803]
[1763653092888,0.00100835,90686.0,90685.0,0.10866803]
[1763653094694,0.11414835,90686.0,90685.0,0.36299803]
[1763653094992,0.11414835,90686.0,90685.0,0.46946803]
[1763653094993,0.00100835,90686.0,90685.0,0.46946803]
[1763653096188,0.05716835,90686.0,90685.0,0.41486803]
[1763653096382,0.05716835,90686.0,90685.0,0.05406803]
[1763653096582,0.00200835,90686.0,90685.0,0.10866803]
[1763653097385,0.11514835,90686.0,90685.0,0.00219803]
[1763653097684,0.0110391,90680.0,90676.0,0.10663537]
[1763653097990,0.01131408,90686.0,90685.0,0.10647]
[1763653098196,0.01204675,90686.0,90685.0,0.10866803]
[1763653099391,0.01204675,90686.0,90676.0,0.00016537]
[1763653099392,0.1241795,90677.0,90676.0,0.00016537]
[1763653099583,0.48571217,90677.0,90676.0,0.0023634]
[1763653099991,0.48571217,90677.0,90663.0,0.3608]
[1763653099992,0.1241811,90664.0,90663.0,0.3608]
[1763653100197,0.05689267,90664.0,90663.0,0.41486803]
[1763653100391,0.05689267,90664.0,90663.0,0.48050923]
[1763653100392,0.00073267,90664.0,90663.0,0.48050923]
[1763653100593,0.3608,90685.0,90677.0,0.10647]
[1763653100897,0.00073267,90684.0,90683.0,0.10647]
[1763653101095,0.00073267,90684.0,90679.0,0.3608]
[1763653101096,0.0671991,90680.0,90679.0,0.3608]
[1763653101284,0.06793177,90680.0,90679.0,0.36299803]
[1763653101490,0.06793177,90680.0,90679.0,0.05406803]
[1763653101689,0.01177177,90680.0,90679.0,0.10866803]
[1763653102197,0.12491177,90680.0,90679.0,0.00219803]
[1763653102402,0.01177177,90680.0,90679.0,0.10866803]
[1763653103186,0.00073267,90680.0,90679.0,0.10866803]
[1763653103397,0.3608,90695.0,90679.0,0.10866803]
[1763653103398,0.3608,90704.0,90703.0,0.1175063]
[1763653103602,0.3608,90704.0,90703.0,0.10866803]
[1763653104395,0.08676719,90706.0,90705.0,0.05187]
[1763653104598,0.01133607,90713.0,90705.0,0.05187]
[1763653104599,0.01133607,90713.0,90705.0,0.10866803]
[1763653104800,0.0671959,90707.0,90706.0,0.05187]
[1763653105095,0.0671958,90707.0,90706.0,0.05406803]
[1763653105605,0.1241758,90707.0,90706.0,0.00219803]
[1763653105896,0.21464003,90707.0,90706.0,0.00219803]
[1763653106394,0.21464003,90707.0,90695.0,0.3608]
[1763653106395,0.1241772,90696.0,90695.0,0.3608]
[1763653106590,0.11314,90695.0,90694.0,0.00016537]
[1763653106799,0.11314,90695.0,90694.0,0.0023634]
[1763653106997,0.0110371,90697.0,90696.0,0.05187]
[1763653107297,0.0110371,90697.0,90696.0,0.10866803]
[1763653107899,0.0671971,90697.0,90696.0,0.05406803]
[1763653108102,0.11314,90695.0,90694.0,0.00016537]
[1763653108503,0.0110371,90697.0,90696.0,0.10647]
[1763653108705,0.0110371,90697.0,90696.0,0.10866803]
[1763653108995,0.3608,90698.0,90697.0,0.117507]
[1763653109192,0.21006003,90707.0,90706.0,0.05053]
[1763653109402,0.21006003,90707.0,90706.0,0.05272803]
[1763653109587,0.20906003,90707.0,90706.0,0.05272803]
[1763653109794,0.0110373,90695.0,90694.0,0.09940537]
[1763653109994,0.0110373,90695.0,90694.0,0.1016034]
[1763653110204,0.1064073,90695.0,90694.0,0.0023634]
[1763653111695,0.0110373,90695.0,90694.0,0.1016034]
[1763653111890,0.0110373,90695.0,90694.0,0.0023634]
[1763653112291,0.1081773,90695.0,90694.0,0.0023634]
[1763653112495,0.1108487,90683.0,90682.0,0.3608]
[1763653112795,0.0110409,90665.0,90664.0,0.07069093]
[1763653112998,0.0110431,90647.0,90646.0,0.08698093]
[1763653113190,0.0110431,90647.0,90646.0,0.04979803]
[1763653113396,0.0110424,90653.0,90652.0,0.0476]
[1763653113597,0.19963964,90653.0,90652.0,0.00219803]
[1763653113794,0.09981,90653.0,90652.0,0.00219803]
[1763653113997,0.37182564,90659.0,90658.0,0.09698]
[1763653113998,0.3718417,90659.0,90658.0,0.09698]
[1763653114195,0.3718417,90659.0,90658.0,0.09917803]
[1763653114400,0.00016547,90662.0,90659.0,0.0110417]
[1763653114601,0.08808737,90662.0,90661.0,0.00219803]
[1763653114803,0.05034547,90662.0,90661.0,0.00219803]
[1763653114998,0.11105663,90662.0,90653.0,0.3608]
[1763653115299,0.1108523,90654.0,90653.0,0.00219803]
[1763653115492,0.1108523,90654.0,90646.0,0.002]
[1763653115493,0.1108531,90647.0,90646.0,0.002]
[1763653115907,0.09981,90644.0,90634.0,0.3608]
[1763653116202,0.0110457,90626.0,90625.0,0.3608]
[1763653116404,0.0110457,90626.0,90625.0,0.36299803]